fUST/lending_fUST_20250729
["ID","MTS","AMOUNT","RATE_DAILY","PERIOD"]
[375780099,1753743046228,-151.0,0.00021574,2]
[375780101,1753743046238,-3219.03643899,0.00021574,2]
[375780103,1753743046248,-859.8105105,0.00021589,2]
[375780105,1753743046257,-430.064903,0.00021589,2]
[375780107,1753743046267,-1174.749,0.00021617,2]
[375780108,1753743046277,-546.24002369,0.00021642,2]
[375780110,1753743046287,-2644.7263595,0.00021642,2]
[375780112,1753743046296,-2644.7263595,0.00021642,2]
[375780114,1753743046306,-2644.7263595,0.00021642,2]
[375780116,1753743046315,-2644.7263595,0.00021642,2]
[375780118,1753743046325,-2644.7263595,0.00021642,2]
[375780120,1753743046335,-2644.7263595,0.00021642,2]
[375780122,1753743046344,-2644.7263595,0.00021642,2]
[375780124,1753743046354,-2644.7263595,0.00021642,2]
[375780126,1753743046363,-2644.7263595,0.00021642,2]
[375780128,1753743046373,-2644.7263595,0.00021642,2]
[375780129,1753743046383,-2644.7263595,0.00021642,2]
[375780131,1753743046394,-2644.7263595,0.00021642,2]
[375780133,1753743046403,-2644.7263595,0.00021642,2]
[375780135,1753743046413,-2644.7263595,0.00021642,2]
[375780137,1753743046422,-2644.7263595,0.00021642,2]
[375780139,1753743046434,-2644.7263595,0.00021642,2]
[375780141,1753743046443,-999.11,0.00021643,2]
[375780143,1753743046453,-460.0,0.00021643,2]
[375780145,1753743046462,-468.69,0.00021643,2]
[375780147,1753743046472,-460.0,0.00021643,2]
[375780149,1753743046482,-460.0,0.00021643,2]
[375780151,1753743046492,-536.83,0.00021643,2]
[375780153,1753743046502,-671.35,0.00021643,2]
[375780155,1753743046513,-460.0,0.00021643,2]
[375780157,1753743046523,-841.79,0.00021643,2]
[375780159,1753743046533,-460.0,0.00021643,2]
[375780161,1753743046543,-460.0,0.00021643,2]
[375780163,1753743046553,-460.0,0.00021643,2]
[375780165,1753743046563,-562.92,0.00021643,2]
[375780167,1753743046572,-460.0,0.00021643,2]
[375780169,1753743046582,-460.0,0.00021643,2]
[375780171,1753743046592,-460.0,0.00021643,2]
[375780173,1753743046602,-460.0,0.00021643,2]
[375780175,1753743046611,-289.18,0.00021643,2]
[375780177,1753743046621,-600.33,0.00021643,2]
[375780179,1753743046631,-647.16,0.00021643,2]
[375780181,1753743046641,-460.0,0.00021643,2]
[375780183,1753743046651,-1069.8,0.00021643,2]
[375780185,1753743046661,-460.0,0.00021643,2]
[375780187,1753743046671,-460.0,0.00021643,2]
[375780189,1753743046681,-2681.18,0.00021643,2]
[375780191,1753743046690,-460.0,0.00021643,2]
[375780193,1753743046700,-460.0,0.00021643,2]
[375780195,1753743046709,-596.0,0.00021717,4]
[375780197,1753743046719,-500.0,0.0002174,2]
[375780199,1753743046729,-904.74566212,0.00021744,2]
[375780201,1753743046739,-1000.0,0.00021744,2]
[375780203,1753743046748,-711.276475,0.00021815,2]
[375780205,1753743046758,-500.0,0.00021831,2]
[375780207,1753743046768,-1000.0,0.00021831,2]
[375780209,1753743046780,-999.11,0.00021917,2]
[375780211,1753743046789,-460.0,0.00021917,2]
[375780213,1753743046799,-468.69,0.00021917,2]
[375780215,1753743046809,-460.0,0.00021917,2]
[375780217,1753743046818,-460.0,0.00021917,2]
[375780218,1753743046828,-536.83,0.00021917,2]
[375780220,1753743046837,-671.35,0.00021917,2]
[375780222,1753743046846,-571.54,0.00021917,2]
[375780224,1753743046856,-841.79,0.00021917,2]
[375780226,1753743046866,-460.0,0.00021917,2]
[375780228,1753743046875,-460.0,0.00021917,2]
[375780230,1753743046884,-460.0,0.00021917,2]
[375780232,1753743046895,-203.3374979,0.00021917,2]
[375780234,1753743046905,-460.0,0.00021917,2]
[375780236,1753743046914,-460.0,0.00021917,2]
[375780238,1753743046925,-600.33,0.00021917,2]
[375780240,1753743046935,-647.16,0.00021917,2]
[375780242,1753743046944,-460.0,0.00021917,2]
[375780244,1753743046953,-1069.8,0.00021917,2]
[375780245,1753743046962,-460.0,0.00021917,2]
[375780247,1753743046972,-606.59447715,0.00021917,2]
[375780249,1753743046982,-2681.18,0.00021917,2]
[375780251,1753743046991,-460.0,0.00021917,2]
[375780253,1753743047000,-151.0,0.00021917,2]
[375780255,1753743047010,-396.31,0.00021918,2]
[375780257,1753743047019,-500.0,0.00021918,2]
[375780259,1753743047031,-38345.97604751,0.00022,4]
[375780261,1753743047040,-551.48610052,0.00022,2]
[375780263,1753743047051,-188.47,0.00022,2]
[375780265,1753743047061,-151.812409,0.00022052,3]
[375780267,1753743047070,-151.812409,0.00022086,3]
[375780269,1753743047080,-270.4618597,0.00022104,2]
[375780271,1753743047089,-596.0,0.00022158,4]
[375780273,1753743047104,-151.0,0.00022158,7]
[375780275,1753743047115,-151.0,0.00022158,7]
[375780277,1753743047124,-168.0,0.00022159,2]
[375780279,1753743047133,-999.11,0.00022191,2]
[375780281,1753743047144,-460.0,0.00022191,2]
[375780283,1753743047153,-468.69,0.00022191,2]
[375780285,1753743047163,-460.0,0.00022191,2]
[375780287,1753743047172,-338.44,0.00022191,2]
[375780289,1753743047183,-536.83,0.00022191,2]
[375780291,1753743047193,-671.35,0.00022191,2]
[375780293,1753743047202,-841.79,0.00022191,2]
[375780295,1753743047211,-460.0,0.00022191,2]
[375780297,1753743047221,-460.0,0.00022191,2]
[375780299,1753743047230,-460.0,0.00022191,2]
[375780301,1753743047239,-460.0,0.00022191,2]
[375780303,1753743047249,-323.04,0.00022191,2]
[375780305,1753743047259,-600.33,0.00022191,2]
[375780307,1753743047268,-647.16,0.00022191,2]
[375780308,1753743047279,-460.0,0.00022191,2]
[375780310,1753743047289,-1069.8,0.00022191,2]
[375780312,1753743047298,-460.0,0.00022191,2]
[375780314,1753743047309,-2681.18,0.00022191,2]
[375780316,1753743047320,-460.0,0.00022191,2]
[375780318,1753743047329,-500.0,0.00022192,2]
[375780320,1753743047338,-2080.47519736,0.00022213,2]
[375780322,1753743047347,-526.44698955,0.00022213,2]
[375780324,1753743047356,-2054.0,0.00022225,2]
[375780326,1753743047366,-736.1161986,0.00022274,2]
[375780327,1753743047376,-373.0,0.0002228,2]
[375780329,1753743047386,-373.0,0.00022312,2]
[375780331,1753743047396,-373.0,0.00022345,2]
[375780333,1753743047405,-1500.0,0.00022379,2]
[375780335,1753743047416,-168.0,0.00022391,2]
[375780337,1753743047430,-250.0,0.0002245,2]
[375780339,1753743047444,-373.0,0.00022464,2]
[375780341,1753743047455,-999.11,0.00022465,2]
[375780343,1753743047464,-460.0,0.00022465,2]
[375780345,1753743047473,-468.69,0.00022465,2]
[375780347,1753743047482,-460.0,0.00022465,2]
[375780349,1753743047492,-536.83,0.00022465,2]
[375780351,1753743047502,-671.35,0.00022465,2]
[375780353,1753743047512,-841.79,0.00022465,2]
[375780355,1753743047523,-460.0,0.00022465,2]
[375780357,1753743047532,-364.02,0.00022465,2]
[375780359,1753743047541,-460.0,0.00022465,2]
[375780361,1753743047551,-460.0,0.00022465,2]
[375780363,1753743047562,-600.33,0.00022465,2]
[375780365,1753743047571,-647.16,0.00022465,2]
[375780367,1753743047581,-154.82,0.00022465,2]
[375780369,1753743047590,-1069.8,0.00022465,2]
[375780370,1753743047599,-460.0,0.00022465,2]
[375780372,1753743047609,-2681.18,0.00022465,2]
[375780374,1753743047619,-268.11,0.00022465,2]
[375780376,1753743047629,-500.0,0.00022466,2]
[375780378,1753743047638,-576.27187642,0.00022473,2]
[375780380,1753743047648,-151.0,0.00022487,7]
[375780382,1753743047658,-151.0,0.00022487,7]
[375780384,1753743047668,-152.104275,0.00022487,7]
[375780386,1753743047677,-151.0,0.00022487,7]
[375780388,1753743047687,-151.0,0.00022487,7]
[375780390,1753743047696,-329.231571,0.00022487,7]
[375780392,1753743047706,-329.231571,0.00022487,7]
[375780394,1753743047716,-151.0,0.00022487,7]
[375780396,1753743047725,-151.0,0.00022487,7]
[375780397,1753743047734,-151.0,0.00022487,7]
[375780399,1753743047743,-151.0,0.00022487,7]
[375780401,1753743047753,-151.0,0.00022488,7]
[375780403,1753743047763,-151.0,0.00022488,7]
[375780405,1753743047774,-151.0,0.00022488,7]
[375780407,1753743047784,-151.0,0.00022488,7]
[375780409,1753743047793,-151.0,0.00022488,7]
[375780410,1753743047802,-151.0,0.00022488,7]
[375780412,1753743047811,-698.37327,0.00022488,7]
[375780414,1753743047821,-698.37327,0.00022488,7]
[375780417,1753743047831,-249.441907,0.00022488,7]
[375780418,1753743047840,-249.441907,0.00022488,7]
[375780420,1753743047850,-151.0,0.00022488,7]
[375780422,1753743047859,-801.536191,0.00022488,7]
[375780424,1753743047868,-801.536191,0.00022488,7]
[375780426,1753743047878,-108004.50864375,0.0002249,7]
[375780428,1753743047888,-222.16873427,0.0002249,2]
[375780430,1753743047897,-151.0,0.0002249,7]
[375780432,1753743047907,-151.0,0.0002249,7]
[375780434,1753743047916,-151.0,0.0002249,7]
[375780436,1753743047926,-151.0,0.0002249,7]
[375780438,1753743047935,-151.0,0.0002249,7]
[375780440,1753743047944,-151.0,0.0002249,7]
[375780442,1753743047954,-151.0,0.0002249,7]
[375780444,1753743047963,-528.084004,0.0002249,7]
[375780446,1753743047972,-151.0,0.0002249,7]
[375780448,1753743047982,-528.084004,0.0002249,7]
[375780450,1753743047991,-477.728082,0.0002249,7]
[375780451,1753743048000,-477.728082,0.0002249,7]
[375780453,1753743048009,-151.0,0.0002249,7]
[375780455,1753743048019,-249.441907,0.0002249,7]
[375780457,1753743048031,-249.441907,0.0002249,7]
[375780459,1753743048040,-151.0,0.0002249,7]
[375780461,1753743048049,-312.16666667,0.0002249,7]
[375780463,1753743048059,-801.536191,0.0002249,7]
[375780465,1753743048069,-801.536191,0.0002249,7]
[375780467,1753743048079,-151.0,0.0002249,7]
[375780469,1753743048088,-151.0,0.0002249,7]
[375780471,1753743048100,-214.87999826,0.0002249,7]
[375780473,1753743048110,-220.123925,0.0002249,7]
[375780475,1753743048120,-12634.73134317,0.0002249,7]
[375780477,1753743048129,-151.0,0.0002249,7]
[375780479,1753743048138,-1737.54,0.000225,7]
[375780481,1753743048149,-7808.58,0.000225,7]
[375780483,1753743048158,-27111.62,0.000225,2]
[375780485,1753743048167,-151.0,0.000225,7]
[375780487,1753743048177,-151.0,0.000225,7]
[375780489,1753743048189,-151.0,0.000225,7]
[375780491,1753743048198,-698.37327,0.000225,7]
[375780493,1753743048207,-698.37327,0.000225,7]
[375780495,1753743048216,-151.0,0.000225,7]
[375780497,1753743048225,-329.231571,0.000225,7]
[375780499,1753743048234,-329.231571,0.000225,7]
[375780501,1753743048244,-151.0,0.000225,7]
[375780503,1753743048253,-151.0,0.000225,7]
[375780505,1753743048262,-151.0,0.000225,7]
[375780506,1753743048272,-151.0,0.000225,7]
[375780508,1753743048282,-373.0,0.00022524,2]
[375780510,1753743048291,-188.47,0.00022546,2]
[375780512,1753743048301,-430.064903,0.00022548,2]
[375780514,1753743048310,-716.6534908,0.00022548,2]
[375780516,1753743048323,-168.0,0.0002256,2]
[375780518,1753743048333,-596.0,0.00022599,5]
[375780520,1753743048342,-246.40088443,0.000226,4]
[375780522,1753743048352,-373.0,0.0002265,2]
[375780524,1753743048361,-373.0,0.0002265,2]
[375780526,1753743048371,-999.11,0.00022739,2]
[375780528,1753743048380,-460.0,0.00022739,2]
[375780530,1753743048390,-468.69,0.00022739,2]
[375780532,1753743048400,-460.0,0.00022739,2]
[375780534,1753743048410,-536.83,0.00022739,2]
[375780536,1753743048420,-671.35,0.00022739,2]
[375780538,1753743048429,-841.79,0.00022739,2]
[375780540,1753743048439,-460.0,0.00022739,2]
[375780542,1753743048448,-460.0,0.00022739,2]
[375780544,1753743048458,-460.0,0.00022739,2]
[375780546,1753743048467,-647.16,0.00022739,2]
[375780548,1753743048478,-600.33,0.00022739,2]
[375780550,1753743048488,-1069.8,0.00022739,2]
[375780552,1753743048498,-369.48,0.00022739,2]
[375780553,1753743048507,-2681.18,0.00022739,2]
[375780555,1753743048517,-500.0,0.0002274,2]
[375780557,1753743048528,-373.0,0.00022752,2]
[375780559,1753743048538,-151.812409,0.00022819,2]
[375780561,1753743048548,-500.0,0.00022836,2]
[375780563,1753743048558,-1244.0,0.00022844,2]
[375780565,1753743048568,-11665.39837505,0.000229,7]
[375780567,1753743048578,-151.0,0.000229,7]
[375780569,1753743048588,-151.0,0.000229,7]
[375780571,1753743048597,-151.0,0.000229,7]
[375780573,1753743048607,-151.0,0.000229,7]
[375780575,1753743048616,-151.0,0.000229,7]
[375780576,1753743048626,-151.0,0.000229,7]
[375780578,1753743048636,-151.0,0.000229,7]
[375780580,1753743048647,-456.302574,0.000229,7]
[375780582,1753743048657,-456.302574,0.000229,7]
[375780584,1753743048667,-275.091046,0.000229,7]
[375780586,1753743048676,-275.091046,0.000229,7]
[375780588,1753743048686,-165600.40445489,0.00022929,2]
[375780590,1753743048696,-151.0,0.00022929,7]
[375780592,1753743048706,-151.0,0.00022929,7]
[375780593,1753743048716,-151.0,0.00022929,7]
[375780594,1753743048727,-151.0,0.00022929,7]
[375780595,1753743048737,-203.173675,0.00022929,7]
[375780596,1753743048748,-151.0,0.00022929,7]
[375780597,1753743048757,-151.0,0.00022929,7]
[375780598,1753743048767,-151.0,0.00022929,7]
[375780599,1753743048778,-151.0,0.00022929,7]
[375780600,1753743048788,-151.0,0.00022929,7]
[375780601,1753743048798,-151.0,0.00022929,7]
[375780602,1753743048808,-151.0,0.00022929,7]
[375780603,1753743048818,-151.0,0.00022929,7]
[375780604,1753743048828,-151.0,0.00022929,7]
[375780605,1753743048837,-151.0,0.00022929,7]
[375780606,1753743048847,-456.302574,0.00022929,7]
[375780607,1753743048856,-456.302574,0.00022929,7]
[375780608,1753743048866,-151.0,0.00022929,7]
[375780609,1753743048875,-159.633506,0.00022929,7]
[375780610,1753743048885,-151.0,0.00022929,7]
[375780611,1753743048895,-235.93622,0.00022929,7]
[375780612,1753743048904,-151.0,0.00022929,7]
[375780613,1753743048914,-151.0,0.00022929,7]
[375780614,1753743048923,-275.091046,0.00022929,7]
[375780615,1753743048932,-275.091046,0.00022929,7]
[375780617,1753743048941,-528.084004,0.00022929,7]
[375780618,1753743048951,-528.084004,0.00022929,7]
[375780620,1753743048960,-151.0,0.00022929,7]
[375780622,1753743048969,-151.0,0.00022929,7]
[375780624,1753743048979,-152.780624,0.00022929,7]
[375780626,1753743048989,-151.0,0.00022929,7]
[375780628,1753743048998,-477.728082,0.00022929,7]
[375780630,1753743049008,-477.728082,0.00022929,7]
[375780632,1753743049018,-151.0,0.00022929,7]
[375780634,1753743049029,-151.0,0.00022929,7]
[375780636,1753743049039,-698.37327,0.00022929,7]
[375780638,1753743049049,-698.37327,0.00022929,7]
[375780640,1753743049059,-249.441907,0.00022929,7]
[375780642,1753743049070,-249.441907,0.00022929,7]
[375780644,1753743049080,-151.0,0.00022929,7]
[375780646,1753743049090,-151.0,0.00022929,7]
[375780648,1753743049100,-801.536191,0.00022929,7]
[375780650,1753743049113,-801.536191,0.00022929,7]
[375780652,1753743049123,-151.0,0.00022929,7]
[375780654,1753743049133,-151.0,0.00022929,7]
[375780655,1753743049256,-329.231571,0.00022929,7]
[375780656,1753743049267,-329.231571,0.00022929,7]
[375780657,1753743049279,-151.0,0.00022929,7]
[375780658,1753743049290,-151.0,0.00022929,7]
[375780659,1753743049300,-151.0,0.00022929,7]
[375780660,1753743049310,-151.0,0.00022929,7]
[375780661,1753743049322,-151.0,0.00022962,7]
[375780662,1753743049332,-454.28546416,0.00022973,2]
[375780663,1753743049341,-500.0,0.00022973,2]
[375780664,1753743049351,-151.0,0.00022999,7]
[375780665,1753743049361,-712.59,0.00023,7]
[375780666,1753743049370,-1428.45,0.00023,2]
[375780667,1753743049380,-1967.33134317,0.00023,2]
[375780668,1753743049390,-160.0,0.00023,3]
[375780669,1753743049399,-160.0,0.00023,3]
[375780670,1753743049409,-9810.06450645,0.00023,2]
[375780671,1753743049420,-347.89479617,0.00023,2]
[375780672,1753743049430,-53062.92266935,0.00023,2]
[375780673,1753743049439,-1337.60374116,0.00023,2]
[375780674,1753743049450,-160.0,0.00023,2]
[375780675,1753743049459,-188.47,0.00023,2]
[375780676,1753743049469,-151.0,0.00023002,7]
[375780677,1753743049478,-1244.0,0.00023003,2]
[375780678,1753743049487,-999.11,0.00023013,2]
[375780679,1753743049497,-460.0,0.00023013,2]
[375780680,1753743049507,-468.69,0.00023013,2]
[375780681,1753743049517,-460.0,0.00023013,2]
[375780682,1753743049527,-536.83,0.00023013,2]
[375780683,1753743049537,-671.35,0.00023013,2]
[375780684,1753743049546,-841.79,0.00023013,2]
[375780685,1753743049555,-460.0,0.00023013,2]
[375780686,1753743049565,-460.0,0.00023013,2]
[375780687,1753743049575,-647.16,0.00023013,2]
[375780688,1753743049586,-600.33,0.00023013,2]
[375780689,1753743049595,-1069.8,0.00023013,2]
[375780690,1753743049605,-2681.18,0.00023013,2]
[375780692,1753743049615,-500.0,0.00023014,2]
[375780694,1753743049624,-160.0,0.00023024,3]
[375780696,1753743049634,-160.0,0.00023024,3]
[375780698,1753743049643,-168.0,0.0002303,2]
[375780700,1753743049653,-596.0,0.00023039,5]
[375780702,1753743049662,-160.0,0.00023043,3]
[375780703,1753743049671,-152.0,0.00023043,3]
[375780705,1753743049681,-160.0,0.00023043,3]
[375780707,1753743049691,-152.0,0.00023043,3]
[375780709,1753743049700,-152.0,0.00023043,3]
[375780711,1753743049710,-578.0900773,0.00023096,2]
[375780713,1753743049720,-160.0754546,0.00023096,2]
[375780715,1753743049730,-347.104782,0.00023135,7]
[375780717,1753743049741,-1245.0,0.00023135,2]
[375780719,1753743049751,-270.4618597,0.00023146,2]
[375780721,1753743049761,-1244.0,0.0002315,2]
[375780723,1753743049771,-999.999999,0.0002327,2]
[375780725,1753743049782,-151.0,0.00023287,7]
[375780727,1753743049791,-356.817036,0.00023287,7]
[375780729,1753743049801,-356.817036,0.00023287,7]
[375780731,1753743049811,-999.11,0.00023287,2]
[375780733,1753743049820,-460.0,0.00023287,2]
[375780735,1753743049830,-468.69,0.00023287,2]
[375780737,1753743049840,-460.0,0.00023287,2]
[375780739,1753743049850,-285.10850752,0.00023287,2]
[375780741,1753743049860,-536.83,0.00023287,2]
[375780743,1753743049869,-671.35,0.00023287,2]
[375780745,1753743049878,-841.79,0.00023287,2]
[375780746,1753743049887,-460.0,0.00023287,2]
[375780747,1753743049896,-460.0,0.00023287,2]
[375780748,1753743049906,-647.16,0.00023287,2]
[375780749,1753743049916,-600.33,0.00023287,2]
[375780750,1753743049926,-1069.8,0.00023287,2]
[375780751,1753743049936,-2681.18,0.00023287,2]
[375780752,1753743049945,-500.0,0.00023288,2]
[375780753,1753743049955,-629.27442988,0.00023295,2]
[375780754,1753743049965,-1126.60340077,0.000234,2]
[375780755,1753743049974,-151.0,0.000234,9]
[375780756,1753743049984,-1000.0,0.000234,2]
[375780757,1753743049993,-151.812409,0.00023401,2]
[375780758,1753743050003,-312.568226,0.00023455,3]
[375780759,1753743050013,-172.0,0.00023455,3]
[375780760,1753743050024,-1320.41340552,0.00023455,3]
[375780761,1753743050034,-160.0,0.00023455,3]
[375780762,1753743050043,-1755.0,0.00023455,3]
[375780763,1753743050052,-160.0,0.00023455,3]
[375780764,1753743050062,-1755.0,0.00023455,3]
[375780765,1753743050071,-152.0,0.00023455,3]
[375780766,1753743050081,-162.30786059,0.00023455,3]
[375780767,1753743050090,-1755.0,0.00023455,3]
[375780768,1753743050103,-152.0,0.00023455,3]
[375780769,1753743050113,-1755.0,0.00023455,3]
[375780770,1753743050122,-174.72074456,0.00023455,3]
[375780771,1753743050131,-152.0,0.00023455,3]
[375780772,1753743050140,-1755.0,0.00023455,3]
[375780773,1753743050150,-152.0,0.00023455,3]
[375780774,1753743050160,-1755.0,0.00023455,3]
[375780775,1753743050170,-152.0,0.00023455,3]
[375780776,1753743050181,-1755.0,0.00023455,3]
[375780777,1753743050190,-1755.0,0.00023455,3]
[375780778,1753743050200,-152.0,0.00023455,3]
[375780779,1753743050211,-152.0,0.00023455,3]
[375780780,1753743050221,-154.0,0.00023455,3]
[375780781,1753743050230,-154.0,0.00023455,3]
[375780782,1753743050240,-1755.0,0.00023455,3]
[375780783,1753743050250,-152.0,0.00023455,3]
[375780784,1753743050259,-1755.0,0.00023455,3]
[375780785,1753743050269,-154.0,0.00023455,3]
[375780786,1753743050281,-1755.0,0.00023455,3]
[375780787,1753743050290,-212.2360704,0.00023455,3]
[375780788,1753743050300,-152.0,0.00023455,3]
[375780789,1753743050309,-1755.0,0.00023455,3]
[375780790,1753743050318,-152.0,0.00023455,3]
[375780791,1753743050327,-1755.0,0.00023455,3]
[375780792,1753743050336,-152.0,0.00023455,3]
[375780793,1753743050346,-1755.0,0.00023455,3]
[375780794,1753743050355,-152.0,0.00023455,3]
[375780795,1753743050365,-1755.0,0.00023455,3]
[375780796,1753743050374,-152.0,0.00023455,3]
[375780797,1753743050384,-152.0,0.00023455,3]
[375780798,1753743050394,-1755.0,0.00023455,3]
[375780799,1753743050404,-152.0,0.00023455,3]
[375780800,1753743050413,-152.0,0.00023455,3]
[375780801,1753743050422,-1755.0,0.00023455,3]
[375780802,1753743050431,-152.0,0.00023455,3]
[375780803,1753743050441,-1755.0,0.00023455,3]
[375780804,1753743050450,-152.0,0.00023455,3]
[375780805,1753743050460,-1755.0,0.00023455,3]
[375780806,1753743050469,-325.0,0.00023455,3]
[375780807,1753743050479,-1755.0,0.00023455,3]
[375780808,1753743050488,-325.0,0.00023455,3]
[375780809,1753743050498,-152.0,0.00023455,3]
[375780810,1753743050507,-1755.0,0.00023455,3]
[375780811,1753743050517,-325.0,0.00023455,3]
[375780812,1753743050530,-152.0,0.00023455,3]
[375780813,1753743050540,-152.0,0.00023455,3]
[375780814,1753743050550,-1755.0,0.00023455,3]
[375780815,1753743050559,-325.0,0.00023455,3]
[375780816,1753743050569,-152.0,0.00023455,3]
[375780817,1753743050578,-325.0,0.00023455,3]
[375780818,1753743050588,-152.0,0.00023455,3]
[375780819,1753743050598,-1755.0,0.00023455,3]
[375780820,1753743050608,-325.0,0.00023455,3]
[375780821,1753743050617,-152.0,0.00023455,3]
[375780822,1753743050627,-1755.0,0.00023455,3]
[375780823,1753743050636,-325.0,0.00023455,3]
[375780824,1753743050645,-152.0,0.00023455,3]
[375780825,1753743050655,-1755.0,0.00023455,3]
[375780826,1753743050664,-152.0,0.00023455,3]
[375780827,1753743050674,-504.55405847,0.00023455,3]
[375780828,1753743050684,-325.0,0.00023455,3]
[375780829,1753743050694,-152.0,0.00023455,3]
[375780830,1753743050703,-325.0,0.00023455,3]
[375780831,1753743050713,-152.0,0.00023455,3]
[375780832,1753743050723,-325.0,0.00023455,3]
[375780833,1753743050732,-152.0,0.00023455,3]
[375780835,1753743050741,-327.05611235,0.00023455,3]
[375780837,1753743050751,-152.0,0.00023455,3]
[375780839,1753743050760,-152.0,0.00023455,3]
[375780841,1753743050769,-152.0,0.00023455,3]
[375780843,1753743050781,-152.0,0.00023455,3]
[375780845,1753743050790,-152.0,0.00023455,3]
[375780846,1753743050799,-152.0,0.00023455,3]
[375780848,1753743050809,-152.0,0.00023455,3]
[375780850,1753743050818,-152.0,0.00023455,3]
[375780852,1753743050827,-152.0,0.00023455,3]
[375780854,1753743050838,-152.0,0.00023455,3]
[375780856,1753743050847,-152.0,0.00023455,3]
[375780858,1753743050857,-151.0,0.00023455,7]
[375780859,1753743050866,-151.0,0.00023455,7]
[375780860,1753743050876,-151.0,0.00023455,7]
[375780861,1753743050885,-151.0,0.00023455,7]
[375780862,1753743050895,-324.0,0.00023455,3]
[375780863,1753743050905,-151.0,0.00023455,7]
[375780864,1753743050915,-151.0,0.00023455,7]
[375780865,1753743050924,-151.0,0.00023455,7]
[375780866,1753743050934,-151.0,0.00023455,7]
[375780867,1753743050943,-151.0,0.00023455,7]
[375780868,1753743050952,-151.0,0.00023455,7]
[375780869,1753743050962,-151.0,0.00023455,7]
[375780870,1753743050971,-151.0,0.00023455,7]
[375780871,1753743050980,-151.0,0.00023455,7]
[375780872,1753743050990,-151.0,0.00023455,7]
[375780873,1753743050999,-151.0,0.00023455,7]
[375780874,1753743051008,-456.302574,0.00023455,7]
[375780875,1753743051018,-456.302574,0.00023455,7]
[375780876,1753743051029,-151.0,0.00023455,7]
[375780877,1753743051038,-235.93622,0.00023455,7]
[375780878,1753743051048,-151.0,0.00023455,7]
[375780879,1753743051057,-235.93622,0.00023455,7]
[375780880,1753743051067,-288.125004,0.00023455,7]
[375780881,1753743051077,-275.091046,0.00023455,7]
[375780882,1753743051086,-275.091046,0.00023455,7]
[375780883,1753743051096,-528.084004,0.00023455,7]
[375780884,1753743051110,-528.084004,0.00023455,7]
[375780885,1753743051119,-151.0,0.00023455,7]
[375780886,1753743051128,-151.0,0.00023455,7]
[375780887,1753743051138,-151.0,0.00023455,7]
[375780888,1753743051148,-477.728082,0.00023455,7]
[375780889,1753743051157,-477.728082,0.00023455,7]
[375780890,1753743051167,-151.0,0.00023455,7]
[375780891,1753743051177,-698.37327,0.00023455,7]
[375780892,1753743051186,-698.37327,0.00023455,7]
[375780893,1753743051196,-249.441907,0.00023455,7]
[375780894,1753743051205,-249.441907,0.00023455,7]
[375780895,1753743051215,-200.680604,0.00023455,7]
[375780896,1753743051225,-151.0,0.00023455,7]